[Event "GER-ch Youth ODJM 2019"]
[Site "Willingen"]
[Date "2019.06.09"]
[Round "1.1"]
[White "Holtel, Jasper"]
[Black "Kracht, Raphael"]
[Result "1-0"]
[ECO "C50"]
[WhiteElo "2273"]
[BlackElo "1976"]
[Annotator "NA RC"]
[PlyCount "57"]
[EventDate "2019.06.07"]
[EventType "swiss"]
[EventRounds "9"]
[EventCountry "GER"]
[SourceTitle "playchess.com"]
[Source "ChessBase"]
[SourceQuality "1"]
[TimeControl "40/5400+30:1800+30"]

1. e4 {[%emt 0:00:00]} e5 {[%emt 0:00:00]} 2. Nf3 {[%emt 0:00:00]} Nc6 {[%emt 0:00:00]} 3. Bc4 {[%emt 0:00:54]} Bc5 {[%emt 0:00:00]} 4. O-O {[%emt 0:00:48]} Nf6 {[%emt 0:00:17]} 5. d3 {[%emt 0:00:07]} O-O {[%emt 0:00:06]} 6. h3 {[%emt 0:00:12]} d5 {[%emt 0:00:11]} 7. exd5 {[%emt 0:00:09]} Nxd5 {[%emt 0:00:05]} 8. Re1 {[%emt 0:00:13]} Bb6 {[%emt 0:06:39]} 9. Nbd2 {[%emt 0:17:44]} f6 {[%emt 0:10:00]} 10. c3 {[%emt 0:17:34]} Be6 {[%emt 0:03:56]} 11. d4 {[%emt 0:04:50]} Qd7 {[%emt 0:02:10]} 12. dxe5 {[%emt 0:01:27]} fxe5 {[%emt 0:01:59]} 13. Ne4 {[%emt 0:01:08]} h6 {[%emt 0:04:05]} 14. Be3 {[%emt 0:03:27]} Rad8 {[%emt 0:11:41]} 15. Bc5 {[%emt 0:20:03]} Rf4 {[%emt 0:08:25]} 16. Bxb6 {[%emt 0:02:41]} axb6 {[%emt 0:01:22]} 17. Qe2 {[%emt 0:04:58]} Qf7 {[%emt 0:07:34]} 18. Rad1 {[%emt 0:01:42]} g5 {[%emt 0:22:42]} 19. Nh2 {[%emt 0:06:51]} Rf8 {[%emt 0:05:43]} 20. Ng4 {[%emt 0:02:27]} Kg7 {[%emt 0:04:29]} 21. Nxe5 {[%emt 0:04:55]} Nxe5 {[%emt 0:01:16]} 22. Nxg5 {[%emt 0:00:09]} hxg5 {[%emt 0:02:12]} 23. Qxe5+ {[%emt 0:00:07]} Qf6 {[%emt 0:00:50]} 24. Bxd5 {[%emt 0:01:07]} Bxd5 {[%emt 0:01:01]} 25. Rxd5 {[%emt 0:00:09]} Rxf2 {[%emt 0:01:14]} 26. Qxg5+ {[%emt 0:02:14]} Qxg5 {[%emt 0:00:08]} 27. Rxg5+ {[%emt 0:00:07]} Kh6 {[%emt 0:00:06]} 28. Rg4 {[%emt 0:00:35]} Rxb2 {[%emt 0:00:20]} 29. Re6+ {[%emt 0:00:25] normal} 1-0

[Event "GER-ch Youth ODJM 2019"]
[Site "Willingen"]
[Date "2019.06.09"]
[Round "1.1"]
[White "Bardorz, Stefan"]
[Black "Petri, Ben-Luca"]
[Result "0-1"]
[ECO "B03"]
[WhiteElo "1646"]
[BlackElo "1895"]
[Annotator "NA"]
[PlyCount "34"]
[EventDate "2019.06.07"]
[EventType "swiss"]
[EventRounds "9"]
[EventCountry "GER"]
[SourceTitle "playchess.com"]
[Source "ChessBase"]
[SourceQuality "1"]
[TimeControl "40/5400+30:1800+30"]

1. e4 {[%emt 0:00:00]} Nf6 {[%emt 0:00:36]} 2. e5 {[%emt 0:00:00]} Nd5 {[%emt 0:00:02]} 3. d4 {[%emt 0:02:55]} d6 {[%emt 0:00:30]} 4. c4 {[%emt 0:00:04]} Nb6 {[%emt 0:00:04]} 5. exd6 {[%emt 0:01:48]} cxd6 {[%emt 0:00:13]} 6. h3 {[%emt 0:03:41]} g6 {[%emt 0:00:27]} 7. Nf3 {[%emt 0:00:48]} Bg7 {[%emt 0:00:13]} 8. b3 {[%emt 0:02:07]} O-O {[%emt 0:00:26]} 9. Bb2 {[%emt 0:01:15]} Nc6 {[%emt 0:00:19]} 10. Be2 {[%emt 0:11:03]} e5 {[%emt 0:02:26]} 11. dxe5 {[%emt 0:06:04]} dxe5 {[%emt 0:00:10]} 12. O-O {[%emt 0:00:22]} Be6 {[%emt 0:01:18]} 13. Qxd8 {[%emt 0:09:53]} Rfxd8 {[%emt 0:00:53]} 14. Nbd2 {[%emt 0:00:43]} e4 {[%emt 0:01:27]} 15. Nxe4 {[%emt 0:13:06]} Bxb2 {[%emt 0:00:09]} 16. Rab1 {[%emt 0:00:10]} Bf5 {[%emt 0:02:38]} 17. Rxb2 {[%emt 0:06:32]} Bxe4 {[%emt 0:00:07] normal} 0-1

[Event "GER-ch Youth ODJM 2019"]
[Site "Willingen"]
[Date "2019.06.09"]
[Round "1.2"]
[White "Nasoyan, Maksim"]
[Black "Terhuven, Patrick"]
[Result "0-1"]
[ECO "A04"]
[WhiteElo "1877"]
[BlackElo "2210"]
[Annotator "NA"]
[PlyCount "60"]
[EventDate "2019.06.07"]
[EventType "swiss"]
[EventRounds "9"]
[EventCountry "GER"]
[SourceTitle "playchess.com"]
[Source "ChessBase"]
[SourceQuality "1"]
[TimeControl "40/5400+30:1800+30"]

1. Nf3 {[%emt 0:00:00]} c5 {[%emt 0:00:00]} 2. d4 {[%emt 0:01:11]} cxd4 {[%emt 0:00:00]} 3. Nxd4 {[%emt 0:00:05]} g6 {[%emt 0:00:46]} 4. g3 {[%emt 0:00:11]} Bg7 {[%emt 0:00:44]} 5. c4 {[%emt 0:00:29]} Nc6 {[%emt 0:00:45]} 6. Nc2 {[%emt 0:00:16]} Nf6 {[%emt 0:01:19]} 7. Bg2 {[%emt 0:00:07]} O-O {[%emt 0:00:58]} 8. O-O {[%emt 0:00:28]} d6 {[%emt 0:01:19]} 9. Nc3 {[%emt 0:00:24]} Nd7 {[%emt 0:03:20]} 10. e4 {[%emt 0:04:20]} Nc5 {[%emt 0:01:47]} 11. Be3 {[%emt 0:06:51]} Be6 {[%emt 0:04:13]} 12. Qe2 {[%emt 0:09:42]} Bxc3 {[%emt 0:07:30]} 13. bxc3 {[%emt 0:00:05]} Ne5 {[%emt 0:01:17]} 14. f4 {[%emt 0:16:27]} Bxc4 {[%emt 0:04:31]} 15. Qd2 {[%emt 0:02:17]} Bxf1 {[%emt 0:00:53]} 16. Rxf1 {[%emt 0:00:05]} Nc4 {[%emt 0:00:52]} 17. Qe2 {[%emt 0:00:44]} Nxe3 {[%emt 0:00:16]} 18. Nxe3 {[%emt 0:00:04]} e6 {[%emt 0:08:00]} 19. f5 {[%emt 0:02:34]} exf5 {[%emt 0:04:03]} 20. exf5 {[%emt 0:00:06]} Qg5 {[%emt 0:04:31]} 21. Rf4 {[%emt 0:04:19]} Rae8 {[%emt 0:01:32]} 22. Qf3 {[%emt 0:02:12]} Nd3 {[%emt 0:03:39]} 23. h4 {[%emt 0:04:03]} Qe7 {[%emt 0:05:10]} 24. Nd5 {[%emt 0:00:12]} Qe1+ {[%emt 0:00:28]} 25. Kh2 {[%emt 0:00:06]} Nxf4 {[%emt 0:00:45]} 26. Nf6+ {[%emt 0:29:10]} Kg7 {[%emt 0:06:24]} 27. Qxf4 {[%emt 0:03:16]} Kxf6 {[%emt 0:01:43]} 28. h5 {[%emt 0:01:18]} Qe5 {[%emt 0:05:09]} 29. Qh4+ {[%emt 0:01:32]} Kg7 {[%emt 0:02:16]} 30. f6+ {[%emt 0:00:23]} Kh8 {[%emt 0:00:54] normal} 0-1

[Event "GER-ch Youth ODJM 2019"]
[Site "Willingen"]
[Date "2019.06.09"]
[Round "1.2"]
[White "Astner, Sebastian"]
[Black "Lohrmann, Tabea"]
[Result "1-0"]
[ECO "C54"]
[WhiteElo "1870"]
[BlackElo "1549"]
[Annotator "NA"]
[PlyCount "53"]
[EventDate "2019.06.07"]
[EventType "swiss"]
[EventRounds "9"]
[EventCountry "GER"]
[SourceTitle "playchess.com"]
[Source "ChessBase"]
[SourceQuality "1"]
[TimeControl "40/5400+30:1800+30"]

1. e4 {[%emt 0:00:00]} e5 {[%emt 0:00:00]} 2. Nf3 {[%emt 0:00:00]} Nc6 {[%emt 0:00:00]} 3. d4 {[%emt 0:00:00]} exd4 {[%emt 0:00:00]} 4. Bc4 {[%emt 0:00:00]} Bc5 {[%emt 0:00:01]} 5. c3 {[%emt 0:00:00]} Nf6 {[%emt 0:00:06]} 6. cxd4 {[%emt 0:00:07]} Bb4+ {[%emt 0:00:07]} 7. Bd2 {[%emt 0:00:14]} Bxd2+ {[%emt 0:00:09]} 8. Nbxd2 {[%emt 0:00:09]} d5 {[%emt 0:00:08]} 9. exd5 {[%emt 0:01:09]} Nxd5 {[%emt 0:00:07]} 10. O-O {[%emt 0:01:02]} O-O {[%emt 0:01:01]} 11. Nb3 {[%emt 0:02:49]} Nce7 {[%emt 0:05:16]} 12. Qd2 {[%emt 0:02:32]} Qd6 {[%emt 0:07:16]} 13. Rfe1 {[%emt 0:04:04]} c6 {[%emt 0:08:45]} 14. Nc5 {[%emt 0:03:06]} b6 {[%emt 0:03:55]} 15. Ne4 {[%emt 0:02:22]} Qf4 {[%emt 0:10:24]} 16. Bxd5 {[%emt 0:05:47]} Nxd5 {[%emt 0:00:44]} 17. Qxf4 {[%emt 0:00:07]} Nxf4 {[%emt 0:00:06]} 18. Ne5 {[%emt 0:00:07]} Re8 {[%emt 0:09:21]} 19. Nd6 {[%emt 0:05:25]} Re6 {[%emt 0:06:36]} 20. Ndxf7 {[%emt 0:02:06]} Nd3 {[%emt 0:03:09]} 21. Nxd3 {[%emt 0:01:19]} Kxf7 {[%emt 0:01:11]} 22. Ne5+ {[%emt 0:00:59]} Kf6 {[%emt 0:00:40]} 23. Re3 {[%emt 0:01:58]} c5 {[%emt 0:03:58]} 24. Rf3+ {[%emt 0:05:31]} Kg5 {[%emt 0:07:03]} 25. h4+ {[%emt 0:18:55]} Kxh4 {[%emt 0:08:59]} 26. Re1 {[%emt 0:01:40]} h5 {[%emt 0:02:57]} 27. Rg3 {[%emt 0:01:21] normal} 1-0

[Event "GER-ch Youth ODJM 2019"]
[Site "Willingen"]
[Date "2019.06.09"]
[Round "1.3"]
[White "Oberhofer, Cedric"]
[Black "Weber, Jannis"]
[Result "1-0"]
[ECO "D70"]
[WhiteElo "2243"]
[BlackElo "1889"]
[Annotator "NA"]
[PlyCount "79"]
[EventDate "2019.06.07"]
[EventType "swiss"]
[EventRounds "9"]
[EventCountry "GER"]
[SourceTitle "playchess.com"]
[Source "ChessBase"]
[SourceQuality "1"]
[TimeControl "40/5400+30:1800+30"]

1. d4 {[%emt 0:00:00]} Nf6 {[%emt 0:00:00]} 2. c4 {[%emt 0:00:00]} g6 {[%emt 0:00:00]} 3. Nf3 {[%emt 0:00:01]} Bg7 {[%emt 0:00:00]} 4. g3 {[%emt 0:00:08]} c6 {[%emt 0:00:14]} 5. Bg2 {[%emt 0:00:18]} d5 {[%emt 0:00:08]} 6. Qb3 {[%emt 0:00:11]} dxc4 {[%emt 0:13:20]} 7. Qxc4 {[%emt 0:03:06]} Be6 {[%emt 0:03:45]} 8. Qa4 {[%emt 0:08:38]} Nbd7 {[%emt 0:06:28]} 9. O-O {[%emt 0:05:14]} Nb6 {[%emt 0:03:15]} 10. Qd1 {[%emt 0:00:18]} O-O {[%emt 0:05:22]} 11. Nc3 {[%emt 0:08:54]} h6 {[%emt 0:05:56]} 12. Qc2 {[%emt 0:12:24]} Qc8 {[%emt 0:09:43]} 13. Rd1 {[%emt 0:07:00]} Bh3 {[%emt 0:08:23]} 14. e4 {[%emt 0:03:56]} Bxg2 {[%emt 0:00:23]} 15. Kxg2 {[%emt 0:00:06]} Rd8 {[%emt 0:02:15]} 16. a4 {[%emt 0:02:17]} Nbd7 {[%emt 0:07:09]} 17. e5 {[%emt 0:04:11]} Nd5 {[%emt 0:01:25]} 18. e6 {[%emt 0:02:21]} Nf8 {[%emt 0:01:45]} 19. exf7+ {[%emt 0:02:08]} Kxf7 {[%emt 0:00:08]} 20. Ne5+ {[%emt 0:05:01]} Bxe5 {[%emt 0:00:28]} 21. dxe5 {[%emt 0:00:09]} g5 {[%emt 0:05:55]} 22. h4 Qe6 {[%emt 0:01:21]} 23. hxg5 {[%emt 0:14:27]} hxg5 {[%emt 0:01:04]} 24. Ne4 {[%emt 0:01:39]} Qxe5 {[%emt 0:01:48]} 25. Nxg5+ {[%emt 0:01:22]} Ke8 {[%emt 0:00:29]} 26. Bd2 {[%emt 0:01:51]} Nb4 {[%emt 0:03:17]} 27. Bxb4 {[%emt 0:03:33]} Qxg5 {[%emt 0:00:09]} 28. f4 {[%emt 0:04:11]} Qg4 {[%emt 0:01:47]} 29. Re1 {[%emt 0:05:57]} Ng6 {[%emt 0:03:43]} 30. Kf2 {[%emt 0:01:22]} Rd5 {[%emt 0:04:56]} 31. Qe2 {[%emt 0:02:09]} Qh3 {[%emt 0:06:41]} 32. Rh1 {[%emt 0:00:10]} Qf5 {[%emt 0:00:59]} 33. Rh8+ {[%emt 0:00:23]} Kf7 {[%emt 0:00:44]} 34. Rxa8 {[%emt 0:00:11]} Qh3 {[%emt 0:00:34]} 35. Rg1 {[%emt 0:00:56]} c5 {[%emt 0:02:34]} 36. Bc3 {[%emt 0:01:30]} Nxf4 {[%emt 0:01:05]} 37. gxf4 {[%emt 0:00:54]} Qh4+ {[%emt 0:00:23]} 38. Rg3 {[%emt 0:00:40]} Qh2+ {[%emt 0:00:42]} 39. Rg2 {[%emt 0:00:09]} Qh4+ {[%emt 0:00:06]} 40. Kg1 {[%emt 0:00:11] normal} 1-0

[Event "GER-ch Youth ODJM 2019"]
[Site "Willingen"]
[Date "2019.06.09"]
[Round "1.3"]
[White "Feidt, Jonas"]
[Black "Matthes, Benjamin"]
[Result "0-1"]
[ECO "A13"]
[WhiteElo "1622"]
[BlackElo "1737"]
[Annotator "NA"]
[PlyCount "45"]
[EventDate "2019.06.07"]
[EventType "swiss"]
[EventRounds "9"]
[EventCountry "GER"]
[SourceTitle "playchess.com"]
[Source "ChessBase"]
[SourceQuality "1"]
[TimeControl "40/5400+30:1800+30"]

1. c4 {[%emt 0:00:00]} e6 {[%emt 0:00:42]} 2. g3 {[%emt 0:00:00]} d5 {[%emt 0:00:14]} 3. Bg2 {[%emt 0:00:00]} Nf6 {[%emt 0:00:46]} 4. Nf3 {[%emt 0:00:08]} c5 {[%emt 0:02:44]} 5. cxd5 {[%emt 0:01:34]} exd5 {[%emt 0:00:44]} 6. d4 {[%emt 0:04:31]} Nc6 {[%emt 0:02:24]} 7. Nc3 {[%emt 0:02:38]} c4 {[%emt 0:01:04]} 8. O-O {[%emt 0:02:23]} Be7 {[%emt 0:00:58]} 9. b3 {[%emt 0:09:33]} cxb3 {[%emt 0:10:26]} 10. Qxb3 {[%emt 0:00:41]} O-O {[%emt 0:00:20]} 11. Bg5 {[%emt 0:07:52]} Na5 {[%emt 0:14:17]} 12. Qc2 {[%emt 0:02:51]} Be6 {[%emt 0:07:31]} 13. Ne5 {[%emt 0:06:50]} Rc8 {[%emt 0:11:39]} 14. Qd3 {[%emt 0:03:41]} h6 {[%emt 0:08:03]} 15. Bd2 {[%emt 0:06:14]} Nc6 {[%emt 0:09:05]} 16. Nxc6 {[%emt 0:07:01]} Rxc6 {[%emt 0:03:42]} 17. Rfc1 {[%emt 0:03:29]} Qd7 {[%emt 0:02:23]} 18. f3 {[%emt 0:11:01]} Rd8 {[%emt 0:03:09]} 19. e3 {[%emt 0:10:12]} Bf5 {[%emt 0:08:23]} 20. Qe2 {[%emt 0:01:00]} Ba3 {[%emt 0:02:34]} 21. e4 {[%emt 0:03:41]} Bxc1 {[%emt 0:01:16]} 22. Rxc1 {[%emt 0:00:08]} dxe4 {[%emt 0:00:12]} 23. Nb1 {normal} 0-1

[Event "GER-ch Youth ODJM 2019"]
[Site "Willingen"]
[Date "2019.06.09"]
[Round "1.4"]
[White "Kreutz, Jonas"]
[Black "Kardoeus, David"]
[Result "1/2-1/2"]
[ECO "B31"]
[WhiteElo "1970"]
[BlackElo "2202"]
[Annotator "NA"]
[PlyCount "55"]
[EventDate "2019.06.07"]
[EventType "swiss"]
[EventRounds "9"]
[EventCountry "GER"]
[SourceTitle "playchess.com"]
[Source "ChessBase"]
[SourceQuality "1"]
[TimeControl "40/5400+30:1800+30"]

1. e4 {[%emt 0:00:00]} c5 {[%emt 0:00:00]} 2. Nf3 {[%emt 0:00:00]} Nc6 {[%emt 0:00:00]} 3. Bb5 {[%emt 0:00:00]} g6 {[%emt 0:00:05]} 4. Bxc6 {[%emt 0:00:00]} dxc6 {[%emt 0:00:14]} 5. c3 {[%emt 0:02:03]} Qd3 {[%emt 0:09:27]} 6. Qe2 {[%emt 0:02:58]} Qxe2+ {[%emt 0:03:15]} 7. Kxe2 {[%emt 0:00:10]} Nf6 {[%emt 0:00:12]} 8. e5 {[%emt 0:03:31]} Nd5 {[%emt 0:00:14]} 9. d3 {[%emt 0:07:30]} Bg7 {[%emt 0:01:28]} 10. Re1 {[%emt 0:01:44]} Bf5 {[%emt 0:02:58]} 11. a3 {[%emt 0:02:39]} O-O-O {[%emt 0:00:39]} 12. c4 {[%emt 0:00:51]} Nb4 {[%emt 0:21:21]} 13. axb4 {[%emt 0:02:09]} Bxd3+ {[%emt 0:06:46]} 14. Ke3 {[%emt 0:00:09]} Bh6+ {[%emt 0:03:44]} 15. Ng5 {[%emt 0:00:14]} f6 {[%emt 0:00:41]} 16. Rxa7 {[%emt 0:07:47]} Bxb1 {[%emt 0:05:21]} 17. exf6 {[%emt 0:00:59]} Bxg5+ {[%emt 0:02:50]} 18. Kf3 {[%emt 0:02:08]} Bxc1 {[%emt 0:21:03]} 19. Rxe7 {[%emt 0:05:56]} Rd3+ {[%emt 0:03:50]} 20. Ke2 {[%emt 0:00:56]} Bf4 {[%emt 0:00:09]} 21. f7 {[%emt 0:02:42]} Bc7 {[%emt 0:05:07]} 22. b5 {[%emt 0:05:59]} cxb5 {[%emt 0:01:39]} 23. cxb5 {[%emt 0:00:47]} Rd5 {[%emt 0:02:26]} 24. Ra8+ {[%emt 0:01:06]} Bb8 {[%emt 0:00:21]} 25. b6 {[%emt 0:00:19]} Bd3+ {[%emt 0:02:39]} 26. Ke3 {[%emt 0:00:17]} Rd7 {[%emt 0:02:27]} 27. Re8+ {[%emt 0:03:57]} Rd8 {[%emt 0:00:13]} 28. Re7 {[%emt 0:00:22] normal} 1/2-1/2

[Event "GER-ch Youth ODJM 2019"]
[Site "Willingen"]
[Date "2019.06.09"]
[Round "1.4"]
[White "Bilecen, Simon"]
[Black "Diegel, Yannick"]
[Result "0-1"]
[ECO "D00"]
[WhiteElo "1669"]
[BlackElo "1411"]
[Annotator "NA"]
[PlyCount "58"]
[EventDate "2019.06.07"]
[EventType "swiss"]
[EventRounds "9"]
[EventCountry "GER"]
[SourceTitle "playchess.com"]
[Source "ChessBase"]
[SourceQuality "1"]
[TimeControl "40/5400+30:1800+30"]

1. d4 {[%emt 0:00:45]} d5 {[%emt 0:00:00]} 2. Bf4 {[%emt 0:05:12]} Nf6 {[%emt 0:00:49]} 3. e3 {[%emt 0:00:20]} Bf5 {[%emt 0:01:10]} 4. Nd2 {[%emt 0:00:56]} e6 {[%emt 0:01:14]} 5. Ngf3 {[%emt 0:00:13]} Nbd7 {[%emt 0:01:01]} 6. Be2 {[%emt 0:01:45]} Be7 {[%emt 0:01:39]} 7. h3 {[%emt 0:04:04]} h6 {[%emt 0:02:07]} 8. O-O {[%emt 0:00:50]} O-O {[%emt 0:00:41]} 9. c4 {[%emt 0:01:54]} c5 {[%emt 0:02:53]} 10. Rc1 {[%emt 0:07:05]} cxd4 {[%emt 0:09:00]} 11. Nxd4 {[%emt 0:06:22]} Bh7 {[%emt 0:01:29]} 12. N2f3 {[%emt 0:04:31]} Rc8 {[%emt 0:09:13]} 13. Nb5 {[%emt 0:13:47]} Qb6 {[%emt 0:09:17]} 14. b3 {[%emt 0:16:37]} a6 {[%emt 0:04:50]} 15. Nbd4 {[%emt 0:01:14]} Ba3 {[%emt 0:02:08]} 16. Rc3 {[%emt 0:11:26]} Bb2 {[%emt 0:02:09]} 17. Rc2 {[%emt 0:00:22]} Bxc2 {[%emt 0:00:16]} 18. Nxc2 {[%emt 0:00:19]} Ne4 {[%emt 0:05:54]} 19. Nd2 {[%emt 0:10:53]} Nc3 {[%emt 0:04:58]} 20. Qe1 {[%emt 0:00:16]} Nxe2+ {[%emt 0:01:04]} 21. Qxe2 {[%emt 0:00:08]} Be5 {[%emt 0:07:31]} 22. Bxe5 {[%emt 0:03:26]} Nxe5 {[%emt 0:00:11]} 23. Nd4 {[%emt 0:00:40]} dxc4 {[%emt 0:02:25]} 24. bxc4 {[%emt 0:08:23]} Qb2 {[%emt 0:12:42]} 25. Qh5 {[%emt 0:00:23]} Qxa2 {[%emt 0:01:43]} 26. Ne4 {[%emt 0:00:23]} Nd7 {[%emt 0:02:15]} 27. Nd6 {[%emt 0:00:02]} Rc5 {[%emt 0:02:09]} 28. Qg4 {[%emt 0:00:47]} Rg5 {[%emt 0:01:41]} 29. Qf4 e5 {normal} 0-1

[Event "GER-ch Youth ODJM 2019"]
[Site "Willingen"]
[Date "2019.06.09"]
[Round "1.6"]
[White "Bartelt, Max Peter"]
[Black "Hungeling, David"]
[Result "1-0"]
[ECO "A40"]
[WhiteElo "1789"]
[BlackElo "1566"]
[Annotator "NA"]
[PlyCount "65"]
[EventDate "2019.06.07"]
[EventType "swiss"]
[EventRounds "9"]
[EventCountry "GER"]
[SourceTitle "playchess.com"]
[Source "ChessBase"]
[SourceQuality "1"]
[TimeControl "40/5400+30:1800+30"]

1. d4 {[%emt 0:00:00]} e6 {[%emt 0:00:00]} 2. Nf3 {[%emt 0:00:00]} Nf6 {[%emt 0:00:13]} 3. g3 {[%emt 0:00:21]} b6 {[%emt 0:03:42]} 4. Bg2 {[%emt 0:00:08]} Bb7 {[%emt 0:01:50]} 5. O-O {[%emt 0:00:18]} c5 {[%emt 0:02:30]} 6. c4 {[%emt 0:02:54]} d5 {[%emt 0:06:27]} 7. Nc3 {[%emt 0:01:05]} dxc4 {[%emt 0:04:09]} 8. Qa4+ {[%emt 0:03:32]} Qd7 {[%emt 0:04:12]} 9. Qxc4 {[%emt 0:00:51]} Nc6 {[%emt 0:12:35]} 10. Rd1 {[%emt 0:01:25]} Na5 {[%emt 0:13:51]} 11. Qd3 {[%emt 0:01:14]} cxd4 {[%emt 0:01:26]} 12. Nxd4 {[%emt 0:03:21]} Bxg2 {[%emt 0:02:54]} 13. Kxg2 {[%emt 0:00:05]} Qb7+ {[%emt 0:01:57]} 14. Kg1 {[%emt 0:02:06]} Rd8 {[%emt 0:02:56]} 15. Be3 {[%emt 0:16:26]} Nd5 {[%emt 0:06:27]} 16. Bg5 {[%emt 0:07:54]} Nxc3 {[%emt 0:08:00]} 17. Qxc3 {[%emt 0:02:39]} Rc8 {[%emt 0:04:27]} 18. Qd3 {[%emt 0:01:56]} Be7 {[%emt 0:02:59]} 19. Qb5+ {[%emt 0:01:28]} Kf8 {[%emt 0:08:16]} 20. Nxe6+ {[%emt 0:04:18]} fxe6 {[%emt 0:02:14]} 21. Rd7 {[%emt 0:00:14]} Qc6 {[%emt 0:05:25]} 22. Bxe7+ {[%emt 0:00:06]} Ke8 {[%emt 0:00:45]} 23. Qe5 {[%emt 0:05:52]} Qxd7 {[%emt 0:01:23]} 24. Qxg7 {[%emt 0:00:05]} Qxe7 {[%emt 0:00:20]} 25. Qxh8+ {[%emt 0:00:03]} Kd7 {[%emt 0:00:25]} 26. Rd1+ {[%emt 0:00:13]} Kc7 {[%emt 0:00:55]} 27. Rc1+ {[%emt 0:00:07]} Nc6 {[%emt 0:00:08]} 28. Rxc6+ {[%emt 0:00:05]} Kxc6 {[%emt 0:00:13]} 29. Qxc8+ {[%emt 0:00:03]} Kb5 {[%emt 0:01:35]} 30. b3 {[%emt 0:01:43]} Ka5 {[%emt 0:01:31]} 31. Qc4 {[%emt 0:00:13]} Qa3 {[%emt 0:00:57]} 32. Qxe6 {[%emt 0:00:06]} Qxa2 {[%emt 0:00:19]} 33. b4+ {[%emt 0:00:04] normal} 1-0

[Event "GER-ch Youth ODJM 2019"]
[Site "Willingen"]
[Date "2019.06.09"]
[Round "1.7"]
[White "Weber, Samuel"]
[Black "Meiwes, Thore"]
[Result "1-0"]
[ECO "B30"]
[WhiteElo "2160"]
[BlackElo "1933"]
[Annotator "NA"]
[PlyCount "55"]
[EventDate "2019.06.07"]
[EventType "swiss"]
[EventRounds "9"]
[EventCountry "GER"]
[SourceTitle "playchess.com"]
[Source "ChessBase"]
[SourceQuality "1"]
[TimeControl "40/5400+30:1800+30"]

1. e4 {[%emt 0:00:00]} c5 {[%emt 0:00:00]} 2. Nf3 {[%emt 0:00:11]} Nc6 {[%emt 0:00:00]} 3. b3 {[%emt 0:01:01]} d6 {[%emt 0:01:46]} 4. Bb2 {[%emt 0:03:35]} e5 {[%emt 0:00:13]} 5. Bb5 {[%emt 0:10:09]} Nf6 {[%emt 0:00:44]} 6. Bxc6+ {[%emt 0:01:08]} bxc6 {[%emt 0:00:04]} 7. d3 {[%emt 0:00:11]} Be7 {[%emt 0:00:48]} 8. Nbd2 {[%emt 0:03:17]} O-O {[%emt 0:00:12]} 9. h3 {[%emt 0:00:11]} Ne8 {[%emt 0:03:43]} 10. Nc4 {[%emt 0:07:23]} f6 {[%emt 0:04:27]} 11. Ne3 {[%emt 0:03:00]} d5 {[%emt 0:01:28]} 12. Nd2 {[%emt 0:07:34]} Nc7 {[%emt 0:02:31]} 13. Qf3 {[%emt 0:00:31]} Be6 {[%emt 0:02:46]} 14. Nf5 {[%emt 0:03:39]} Qd7 {[%emt 0:02:30]} 15. Nxe7+ {[%emt 0:08:15]} Qxe7 {[%emt 0:00:04]} 16. Qe3 {[%emt 0:00:15]} d4 {[%emt 0:06:49]} 17. Qg3 {[%emt 0:05:56]} Kh8 {[%emt 0:02:47]} 18. O-O {[%emt 0:06:02]} g5 {[%emt 0:04:15]} 19. f3 {[%emt 0:02:39]} Bd7 {[%emt 0:11:57]} 20. Qh2 {[%emt 0:01:41]} Ne6 {[%emt 0:01:00]} 21. g3 {[%emt 0:00:15]} Rg8 {[%emt 0:04:04]} 22. Rf2 {[%emt 0:02:05]} Rg6 {[%emt 0:02:47]} 23. Kf1 {[%emt 0:04:33]} Rh6 {[%emt 0:02:00]} 24. Qh1 {[%emt 0:01:03]} Ng7 {[%emt 0:02:11]} 25. Rh2 {[%emt 0:00:25]} Qe6 {[%emt 0:02:44]} 26. Ke2 {[%emt 0:04:30]} f5 {[%emt 0:03:01]} 27. exf5 {[%emt 0:01:13]} Nxf5 {[%emt 0:00:20]} 28. Ne4 {[%emt 0:00:04] normal} 1-0

[Event "GER-ch Youth ODJM 2019"]
[Site "Willingen"]
[Date "2019.06.09"]
[Round "1.7"]
[White "Aumueller, Naum"]
[Black "Grossmann, Piet"]
[Result "0-1"]
[ECO "C01"]
[WhiteElo "1685"]
[BlackElo "1801"]
[Annotator "NA"]
[PlyCount "59"]
[EventDate "2019.06.07"]
[EventType "swiss"]
[EventRounds "9"]
[EventCountry "GER"]
[SourceTitle "playchess.com"]
[Source "ChessBase"]
[SourceQuality "1"]
[TimeControl "40/5400+30:1800+30"]

1. e4 {[%emt 0:00:00]} e6 {[%emt 0:00:00]} 2. d4 {[%emt 0:00:00]} d5 {[%emt 0:00:00]} 3. exd5 {[%emt 0:00:00]} exd5 {[%emt 0:00:00]} 4. Bd3 {[%emt 0:00:42]} Bd6 {[%emt 0:00:00]} 5. Nf3 {[%emt 0:01:57]} Ne7 {[%emt 0:00:07]} 6. O-O {[%emt 0:07:09]} O-O {[%emt 0:04:01]} 7. h3 {[%emt 0:01:37]} Bf5 {[%emt 0:01:43]} 8. Bg5 {[%emt 0:01:57]} Bxd3 {[%emt 0:01:21]} 9. Qxd3 {[%emt 0:00:09]} c6 {[%emt 0:01:27]} 10. Nbd2 {[%emt 0:04:02]} f6 {[%emt 0:03:48]} 11. Bh4 {[%emt 0:05:45]} Qd7 {[%emt 0:01:25]} 12. Bg3 {[%emt 0:04:34]} Bxg3 {[%emt 0:00:43]} 13. fxg3 {[%emt 0:02:37]} Nf5 {[%emt 0:00:41]} 14. g4 {[%emt 0:06:50]} Nd6 {[%emt 0:00:08]} 15. g5 {[%emt 0:05:38]} Qf5 {[%emt 0:06:21]} 16. Qxf5 {[%emt 0:06:02]} Nxf5 {[%emt 0:00:07]} 17. gxf6 {[%emt 0:01:59]} Rxf6 {[%emt 0:00:12]} 18. Rae1 {[%emt 0:01:45]} Nd7 {[%emt 0:01:32]} 19. c3 {[%emt 0:05:27]} Rff8 {[%emt 0:15:59]} 20. g4 {[%emt 0:07:23]} Nd6 {[%emt 0:10:25]} 21. Ne5 {[%emt 0:05:10]} Nxe5 {[%emt 0:01:34]} 22. Rxe5 {[%emt 0:00:48]} Rxf1+ {[%emt 0:00:13]} 23. Kxf1 {[%emt 0:00:14]} Kf7 {[%emt 0:00:10]} 24. Ke2 {[%emt 0:02:05]} Re8 {[%emt 0:02:44]} 25. Rxe8 {[%emt 0:00:21]} Nxe8 {[%emt 0:00:05]} 26. Ke3 {[%emt 0:00:46]} Ke6 {[%emt 0:00:19]} 27. Kf4 {[%emt 0:01:02]} h6 {[%emt 0:00:25]} 28. h4 {[%emt 0:01:35]} Kf6 {[%emt 0:03:56]} 29. h5 {[%emt 0:05:29]} Nd6 {[%emt 0:00:21]} 30. a4 {[%emt 0:01:56] normal} 0-1